fUSD/lending_fUSD_20250106
["ID","MTS","AMOUNT","RATE_DAILY","PERIOD"]
[347852765,1736159441383,-500.0,0.00010544,2]
[347852766,1736159441393,-502.69811503,0.00010544,2]
[347852767,1736159441403,-501.00282612,0.00010544,2]
[347852768,1736159441412,-500.35373502,0.00010544,2]
[347852769,1736159441423,-502.05273493,0.00010544,2]
[347852770,1736159441432,-500.0,0.00010544,2]
[347852771,1736159441442,-1123.33,0.00010544,2]
[347852772,1736159441452,-501.46697405,0.00010544,2]
[347852773,1736159441462,-500.0,0.00010544,2]
[347852774,1736159441472,-3775.39,0.00010544,2]
[347852775,1736159441482,-500.0,0.00010544,2]
[347852776,1736159441492,-500.0,0.00010544,2]
[347852777,1736159441501,-500.0,0.00010544,2]
[347852778,1736159441511,-500.0,0.00010544,2]
[347852779,1736159441521,-2469.82,0.00010544,2]
[347852780,1736159441530,-500.0,0.00010544,2]
[347852781,1736159441540,-500.0,0.00010544,2]
[347852782,1736159441550,-1412.83,0.00010544,2]
[347852783,1736159441559,-500.0,0.00010544,2]
[347852784,1736159441569,-500.0,0.00010544,2]
[347852785,1736159441578,-205.22344867,0.00010544,2]
[347852786,1736159441588,-500.0,0.00010544,2]
[347852787,1736159441598,-500.0,0.00010544,2]
[347852788,1736159441608,-502.15216691,0.00010544,2]
[347852789,1736159441618,-500.0,0.00010544,2]
[347852790,1736159441627,-500.0,0.00010544,2]
[347852791,1736159441636,-2263.33,0.00010544,2]
[347852792,1736159441647,-500.0,0.00010544,2]
[347852793,1736159441657,-501.65621525,0.00010544,2]
[347852794,1736159441667,-527.59,0.00010544,2]
[347852795,1736159441677,-500.0,0.00010544,2]
[347852796,1736159441686,-500.0,0.00010544,2]
[347852797,1736159441696,-500.94234092,0.00010544,2]
[347852798,1736159441705,-500.0,0.00010544,2]
[347852799,1736159441715,-500.0,0.00010544,2]
[347852800,1736159441725,-502.98255748,0.00010544,2]
[347852801,1736159441735,-500.0,0.00010544,2]
[347852802,1736159441744,-501.67341642,0.00010544,2]
[347852803,1736159441753,-500.0,0.00010544,2]
[347852804,1736159441763,-500.0,0.00010544,2]
[347852805,1736159441772,-485.20087285,0.00010544,2]
[347852806,1736159441782,-456.20148273,0.00010544,2]
[347852807,1736159441791,-2887.38,0.00010544,2]
[347852808,1736159441800,-500.0,0.00010544,2]
[347852809,1736159441810,-2066.47,0.00010544,2]
[347852810,1736159441819,-500.0,0.00010544,2]
[347852811,1736159441829,-539.67104774,0.00010544,2]
[347852812,1736159441838,-501.21692502,0.00010544,2]
[347852813,1736159441847,-500.0,0.00010544,2]
[347852814,1736159441857,-500.0,0.00010544,2]
[347852815,1736159441867,-580.58,0.00010544,2]
[347852816,1736159441876,-500.0,0.00010544,2]
[347852817,1736159441885,-500.0,0.00010544,2]
[347852818,1736159441896,-500.0,0.00010544,2]
[347852819,1736159441905,-501.02285537,0.00010544,2]
[347852820,1736159441915,-500.0,0.00010544,2]
[347852821,1736159441925,-502.73375582,0.00010544,2]
[347852822,1736159441935,-501.51411238,0.00010544,2]
[347852823,1736159441945,-500.0,0.00010544,2]
[347852824,1736159441955,-1494.472138,0.00010544,2]
[347852825,1736159441965,-500.0,0.00010544,2]
[347852826,1736159441975,-500.0,0.00010544,2]
[347852827,1736159441984,-500.0,0.00010544,2]
[347852828,1736159441993,-890.21,0.00010544,2]
[347852829,1736159442003,-1018.88,0.00010544,2]
[347852830,1736159442012,-500.0,0.00010544,2]
[347852831,1736159442022,-500.0,0.00010544,2]
[347852832,1736159442031,-501.46323877,0.00010544,2]
[347852833,1736159442040,-500.84905799,0.00010544,2]
[347852834,1736159442049,-500.0,0.00010544,2]
[347852835,1736159442058,-500.0,0.00010544,2]
[347852836,1736159442068,-1387.473422,0.00010544,2]
[347852837,1736159442077,-2583.53,0.00010544,2]
[347852838,1736159442087,-946.03,0.00010544,2]
[347852839,1736159442097,-500.0,0.00010544,2]
[347852840,1736159442107,-211.46117744,0.00010544,2]
[347852841,1736159442116,-157.900395,0.00010544,2]
[347852842,1736159442126,-500.0,0.00010544,2]
[347852843,1736159442135,-500.96982309,0.00010544,2]
[347852844,1736159442144,-500.65681682,0.00010544,2]
[347852845,1736159442154,-500.0,0.00010544,2]
[347852846,1736159442163,-156.2883,0.00010544,2]
[347852847,1736159442173,-606.37,0.00010544,2]
[347852848,1736159442183,-500.0,0.00010544,2]
[347852849,1736159442193,-1446.46,0.00010544,2]
[347852850,1736159442202,-500.0,0.00010544,2]
[347852851,1736159442211,-500.0,0.00010544,2]
[347852852,1736159442221,-503.95,0.00010544,2]
[347852853,1736159442230,-501.51236171,0.00010544,2]
[347852854,1736159442240,-500.0,0.00010544,2]
[347852855,1736159442249,-500.0,0.00010544,2]
[347852856,1736159442258,-501.29491568,0.00010544,2]
[347852857,1736159442431,-500.0,0.00010544,2]
[347852858,1736159442442,-500.0,0.00010544,2]
[347852859,1736159442451,-500.0,0.00010544,2]
[347852860,1736159442462,-500.0,0.00010544,2]
[347852861,1736159442472,-722.97,0.00010544,2]
[347852862,1736159442481,-504.36653137,0.00010544,2]
[347852863,1736159442491,-663.6,0.00010544,2]
[347852864,1736159442502,-500.0,0.00010544,2]
[347852865,1736159442512,-500.0,0.00010544,2]
[347852866,1736159442522,-500.0,0.00010544,2]
[347852867,1736159442533,-543.35052028,0.00010544,2]
[347852868,1736159442543,-500.0,0.00010544,2]
[347852869,1736159442552,-500.6201531,0.00010544,2]
[347852870,1736159442562,-500.78585461,0.00010544,2]
[347852871,1736159442572,-500.20746564,0.00010544,2]
[347852872,1736159442582,-500.0,0.00010544,2]
[347852873,1736159442591,-500.0,0.00010544,2]
[347852874,1736159442602,-500.0,0.00010544,2]
[347852875,1736159442612,-501.0373542,0.00010544,2]
[347852876,1736159442622,-500.0,0.00010544,2]
[347852877,1736159442632,-500.80795696,0.00010544,2]
[347852878,1736159442642,-522.06171876,0.00010544,2]
[347852879,1736159442652,-500.0,0.00010544,2]
[347852880,1736159442662,-500.0,0.00010545,2]
[347852881,1736159442672,-500.0,0.00010545,2]
[347852882,1736159442681,-500.0,0.00010545,2]
[347852883,1736159442691,-500.0,0.00010545,2]
[347852884,1736159442701,-500.0,0.00010545,2]
[347852885,1736159442710,-500.0,0.00010545,2]
[347852886,1736159442721,-500.0,0.00010545,2]
[347852887,1736159442730,-515.95,0.00010545,2]
[347852888,1736159442739,-629.38,0.00010545,2]
[347852889,1736159442749,-500.0,0.00010545,2]
[347852890,1736159442758,-558.72,0.00010545,2]
[347852891,1736159442767,-500.0,0.00010545,2]
[347852892,1736159442777,-390.60003354,0.00010545,2]
[347852893,1736159442787,-500.0,0.00010545,2]
[347852894,1736159442796,-500.0,0.00010545,2]
[347852895,1736159442806,-500.0,0.00010545,2]
[347852896,1736159442816,-500.0,0.00010545,2]
[347852897,1736159442826,-798.48,0.00010545,2]
[347852898,1736159442836,-603.29,0.00010545,2]
[347852899,1736159442846,-709.4,0.00010545,2]
[347852900,1736159442856,-800.5,0.00010545,2]
[347852901,1736159442866,-500.0,0.00010545,2]
[347852902,1736159442875,-500.0,0.00010545,2]
[347852903,1736159442885,-500.0,0.00010545,2]
[347852904,1736159442895,-500.0,0.00010545,2]
[347852905,1736159442905,-500.0,0.00010545,2]
[347852906,1736159442914,-500.0,0.00010545,2]
[347852907,1736159442923,-500.0,0.00010545,2]
[347852908,1736159442934,-500.0,0.00010545,2]
[347852909,1736159442944,-500.0,0.00010545,2]
[347852910,1736159442953,-500.0,0.00010545,2]
[347852911,1736159442963,-500.0,0.00010545,2]
[347852912,1736159442972,-500.0,0.00010545,2]
[347852913,1736159442982,-500.0,0.00010545,2]
[347852914,1736159442992,-500.0,0.00010545,2]
[347852915,1736159443001,-500.0,0.00010545,2]
[347852916,1736159443011,-500.0,0.00010545,2]
[347852917,1736159443021,-500.0,0.00010545,2]
[347852918,1736159443031,-1830.27,0.00010545,2]
[347852920,1736159443041,-500.0,0.00010545,2]
[347852922,1736159443050,-500.0,0.00010545,2]
[347852924,1736159443060,-500.0,0.00010545,2]
[347852925,1736159443069,-3280.87,0.00010545,2]
[347852926,1736159443079,-686.93,0.00010545,2]
[347852927,1736159443088,-500.0,0.00010545,2]
[347852928,1736159443097,-500.0,0.00010545,2]
[347852929,1736159443107,-587.52,0.00010545,2]
[347852930,1736159443117,-500.0,0.00010545,2]
[347852931,1736159443127,-500.0,0.00010545,2]
[347852932,1736159443136,-500.0,0.00010545,2]
[347852933,1736159443146,-409.46927279,0.00010545,2]
[347852934,1736159443156,-1691.38,0.00010545,2]
[347852935,1736159443166,-810.64,0.00010545,2]
[347852937,1736159443175,-1172.62,0.00010545,2]
[347852938,1736159443185,-1590.57,0.00010547,2]
[347852939,1736159443194,-821.99,0.00010547,2]
[347852940,1736159443204,-500.0,0.00010547,2]
[347852941,1736159443213,-1819.68,0.00010547,2]
[347852942,1736159443223,-500.0,0.00010547,2]
[347852943,1736159443233,-500.0,0.00010547,2]
[347852944,1736159443242,-500.0,0.00010547,2]
[347852945,1736159443252,-926.33,0.00010547,2]
[347852946,1736159443262,-500.0,0.00010547,2]
[347852947,1736159443272,-500.0,0.00010547,2]
[347852948,1736159443286,-500.0,0.00010547,2]
[347852949,1736159443295,-500.0,0.00010547,2]
[347852950,1736159443304,-500.0,0.00010547,2]
[347852951,1736159443314,-882.61,0.00010547,2]
[347852952,1736159443323,-749.66,0.00010547,2]
[347852953,1736159443332,-500.0,0.00010547,2]
[347852954,1736159443342,-500.0,0.00010547,2]
[347852955,1736159443352,-500.0,0.00010547,2]
[347852956,1736159443362,-354.67,0.00010646,2]
[347852957,1736159443371,-251.45,0.00010658,2]
[347852958,1736159443381,-150.0,0.00010658,2]
[347852959,1736159443390,-150.0,0.00010658,2]
[347852960,1736159443400,-150.0,0.00010658,2]
[347852961,1736159443410,-150.0,0.00010658,2]
[347852962,1736159443419,-500.0,0.00010673,2]
[347852963,1736159443429,-447.47,0.00010673,2]
[347852964,1736159443438,-500.0,0.00010673,2]
[347852965,1736159443448,-500.0,0.00010673,2]
[347852966,1736159443458,-500.0,0.00010673,2]
[347852967,1736159443467,-500.0,0.00010673,2]
[347852968,1736159443476,-500.0,0.00010673,2]
[347852969,1736159443486,-1214.7,0.00010673,2]
[347852970,1736159443495,-2031.38,0.00010673,2]
[347852972,1736159443505,-1289.59,0.00010673,2]
[347852974,1736159443515,-3426.06,0.00010673,2]
[347852976,1736159443524,-1446.94,0.00010673,2]
[347852977,1736159443533,-2070.06,0.00010673,2]
[347852978,1736159443543,-1109.26,0.00010673,2]
[347852979,1736159443553,-877.95,0.00010673,2]
[347852980,1736159443562,-500.0,0.00010673,2]
[347852981,1736159443572,-1464.28,0.00010673,2]
[347852982,1736159443582,-2554.62,0.00010673,2]
[347852983,1736159443591,-1393.68,0.00010673,2]
[347852984,1736159443601,-1937.0,0.000107,2]
[347852985,1736159443612,-214.7848527,0.0001078,2]
[347852986,1736159443622,-500.0,0.00010799,2]
[347852987,1736159443632,-500.0,0.00010799,2]
[347852988,1736159443643,-500.0,0.00010799,2]
[347852989,1736159443653,-500.0,0.00010799,2]
[347852991,1736159443662,-500.0,0.00010799,2]
[347852993,1736159443671,-500.0,0.00010799,2]
[347852995,1736159443681,-579.34219157,0.00010799,2]
[347852997,1736159443691,-500.0,0.00010799,2]
[347852999,1736159443700,-230.48431064,0.00010799,2]
[347853001,1736159443710,-500.0,0.00010799,2]
[347853003,1736159443720,-500.0,0.00010799,2]
[347853005,1736159443730,-500.0,0.00010799,2]
[347853006,1736159443739,-500.0,0.00010799,2]
[347853007,1736159443749,-500.0,0.00010799,2]
[347853008,1736159443759,-515.09115546,0.00010799,2]
[347853009,1736159443770,-500.0,0.00010799,2]
[347853010,1736159443780,-510.16374201,0.00010799,2]
[347853011,1736159443789,-500.0,0.00010799,2]
[347853012,1736159443798,-500.0,0.00010799,2]
[347853013,1736159443807,-283.50690812,0.00010799,2]
[347853014,1736159443818,-500.0,0.00010799,2]
[347853015,1736159443827,-500.0,0.00010799,2]
[347853016,1736159443837,-172.09347775,0.00010799,2]
[347853017,1736159443846,-500.0,0.00010799,2]
[347853018,1736159443856,-172.58338853,0.00010799,2]
[347853019,1736159443865,-500.0,0.00010799,2]
[347853020,1736159443875,-500.0,0.00010799,2]
[347853021,1736159443885,-500.0,0.00010799,2]
[347853022,1736159443895,-601.02416243,0.00010799,2]
[347853023,1736159443905,-500.0,0.00010799,2]
[347853024,1736159443915,-500.0,0.00010799,2]
[347853025,1736159443924,-500.0,0.00010799,2]
[347853026,1736159443933,-500.0,0.00010799,2]
[347853027,1736159443943,-500.0,0.00010799,2]
[347853028,1736159443952,-500.0,0.00010799,2]
[347853029,1736159443962,-500.0,0.00010799,2]
[347853030,1736159443971,-505.84222083,0.00010799,2]
[347853031,1736159443981,-500.0,0.00010799,2]
[347853032,1736159443991,-500.0,0.00010799,2]
[347853033,1736159444000,-2340.68,0.00010799,2]
[347853034,1736159444010,-500.0,0.00010799,2]
[347853035,1736159444019,-536.86,0.00010799,2]
[347853036,1736159444029,-582.76,0.00010799,2]
[347853037,1736159444038,-500.0,0.00010799,2]
[347853038,1736159444048,-500.0,0.00010799,2]
[347853039,1736159444057,-500.0,0.00010799,2]
[347853040,1736159444067,-500.0,0.00010799,2]
[347853041,1736159444076,-500.0,0.00010799,2]
[347853042,1736159444086,-500.0,0.00010799,2]
[347853043,1736159444095,-500.0,0.00010799,2]
[347853044,1736159444105,-500.0,0.00010799,2]
[347853045,1736159444115,-604.7,0.00010799,2]
[347853046,1736159444126,-500.0,0.00010799,2]
[347853047,1736159444135,-500.0,0.00010799,2]
[347853048,1736159444148,-500.0,0.00010799,2]
[347853049,1736159444162,-500.0,0.00010799,2]
[347853050,1736159444175,-500.0,0.00010799,2]
[347853051,1736159444186,-500.0,0.00010799,2]
[347853052,1736159444197,-661.46,0.00010799,2]
[347853053,1736159444211,-500.0,0.00010799,2]
[347853054,1736159444223,-500.0,0.00010799,2]
[347853055,1736159444236,-441.39428046,0.00010799,2]
[347853056,1736159444249,-500.0,0.00010799,2]
[347853057,1736159444263,-503.35668402,0.00010799,2]
[347853058,1736159444274,-500.0,0.00010799,2]
[347853059,1736159444289,-500.0,0.00010799,2]
[347853060,1736159444300,-503.7760981,0.00010799,2]
[347853061,1736159444310,-500.0,0.00010799,2]
[347853062,1736159444324,-504.23125441,0.00010799,2]
[347853063,1736159444337,-500.0,0.00010799,2]
[347853064,1736159444349,-500.0,0.00010799,2]
[347853065,1736159444364,-500.0,0.00010799,2]
[347853067,1736159444378,-500.0,0.00010799,2]
[347853068,1736159444391,-500.0,0.00010799,2]
[347853069,1736159444403,-503.19120319,0.00010799,2]
[347853070,1736159444415,-500.0,0.00010799,2]
[347853071,1736159444430,-500.0,0.00010799,2]
[347853072,1736159444443,-506.77432237,0.00010799,2]
[347853073,1736159444456,-500.0,0.00010799,2]
[347853074,1736159444469,-500.0,0.00010799,2]
[347853075,1736159444481,-500.0,0.00010799,2]
[347853076,1736159444493,-508.27323068,0.00010799,2]
[347853077,1736159444507,-503.27162676,0.00010799,2]
[347853078,1736159444520,-500.0,0.00010799,2]
[347853079,1736159444532,-505.14952913,0.00010799,2]
[347853080,1736159444544,-504.69567588,0.00010799,2]
[347853081,1736159444554,-504.25552189,0.00010799,2]
[347853082,1736159444565,-505.15826485,0.00010799,2]
[347853083,1736159444576,-500.0,0.00010799,2]
[347853084,1736159444590,-284.00986807,0.00010799,2]
[347853085,1736159444603,-500.0,0.00010799,2]
[347853086,1736159444613,-500.0,0.00010799,2]
[347853087,1736159444624,-500.0,0.00010799,2]
[347853088,1736159444635,-504.19744999,0.00010799,2]
[347853089,1736159444648,-927.43,0.00010799,2]
[347853090,1736159444661,-500.0,0.00010799,2]
[347853091,1736159444672,-500.0,0.00010799,2]
[347853092,1736159444682,-500.0,0.00010799,2]
[347853093,1736159444693,-500.0,0.00010799,2]
[347853094,1736159444704,-504.76302848,0.00010799,2]
[347853095,1736159444715,-383.34338936,0.00010799,2]
[347853096,1736159444727,-504.51345645,0.00010799,2]
[347853097,1736159444738,-500.0,0.00010799,2]
[347853098,1736159444750,-500.0,0.00010799,2]
[347853099,1736159444760,-500.0,0.00010799,2]
[347853100,1736159444772,-505.85992268,0.00010799,2]
[347853101,1736159444783,-508.62251411,0.00010799,2]
[347853102,1736159444794,-1278.58,0.00010799,2]
[347853103,1736159444805,-509.20755056,0.00010799,2]
[347853104,1736159444816,-510.17410041,0.00010799,2]
[347853105,1736159444828,-513.66382303,0.00010799,2]
[347853106,1736159444838,-500.0,0.00010799,2]
[347853107,1736159444850,-174.05183452,0.00010799,2]
[347853108,1736159444862,-500.0,0.00010799,2]
[347853109,1736159444873,-500.0,0.00010799,2]
[347853110,1736159444884,-510.50732189,0.00010799,2]
[347853111,1736159444895,-507.33251844,0.00010799,2]
[347853112,1736159444907,-1118.11,0.00010799,2]
[347853113,1736159444918,-504.618837,0.00010799,2]
[347853114,1736159444932,-500.0,0.00010799,2]
[347853115,1736159444943,-567.68197646,0.00010799,2]
[347853116,1736159444954,-500.0,0.00010799,2]
[347853117,1736159444965,-500.0,0.00010799,2]
[347853118,1736159444978,-468.40208229,0.00010799,2]
[347853119,1736159444988,-506.38761539,0.00010799,2]
[347853120,1736159444999,-500.0,0.00010799,2]
[347853121,1736159445011,-508.16355658,0.00010799,2]
[347853122,1736159445022,-500.0,0.00010799,2]
[347853123,1736159445034,-504.25767085,0.00010799,2]
[347853124,1736159445045,-500.0,0.00010799,2]
[347853125,1736159445057,-507.59509575,0.00010799,2]
[347853126,1736159445069,-505.79568548,0.00010799,2]
[347853127,1736159445080,-500.0,0.00010799,2]
[347853128,1736159445092,-602.87120593,0.00010799,2]
[347853129,1736159445105,-500.0,0.00010799,2]
[347853130,1736159445117,-935.36,0.00010799,2]
[347853131,1736159445128,-501.18311666,0.00010799,2]
[347853132,1736159445140,-503.65740767,0.00010799,2]
[347853133,1736159445152,-502.13563,0.00010799,2]
[347853134,1736159445163,-500.0,0.00010799,2]
[347853135,1736159445175,-500.0,0.00010799,2]
[347853136,1736159445187,-434.54261585,0.00010799,2]
[347853137,1736159445199,-504.41018421,0.00010799,2]
[347853138,1736159445210,-313.83786466,0.00010799,2]
[347853139,1736159445221,-500.0,0.00010799,2]
[347853140,1736159445233,-500.0,0.00010799,2]
[347853141,1736159445244,-500.0,0.00010799,2]
[347853142,1736159445255,-502.00703965,0.00010799,2]
[347853143,1736159445267,-626.51119054,0.00010799,2]
[347853144,1736159445278,-500.0,0.00010799,2]
[347853145,1736159445294,-505.88239731,0.00010799,2]
[347853146,1736159445305,-2792.9,0.00010799,2]
[347853147,1736159445317,-500.0,0.00010799,2]
[347853148,1736159445331,-612.99690324,0.00010799,2]
[347853149,1736159445342,-773.01,0.00010799,2]
[347853150,1736159445355,-502.47876464,0.00010799,2]
[347853151,1736159445366,-500.0,0.00010799,2]
[347853152,1736159445377,-500.0,0.00010799,2]
[347853153,1736159445391,-500.0,0.00010799,2]
[347853154,1736159445403,-500.0,0.00010799,2]
[347853155,1736159445414,-500.0,0.00010799,2]
[347853156,1736159445426,-500.0,0.00010799,2]
[347853157,1736159445438,-4404.90174452,0.00010799,2]
[347853158,1736159445450,-398478.7396771,0.000108,2]
[347853159,1736159445461,-1000.0,0.00010806,2]
[347853160,1736159445472,-500.0,0.00010818,2]
[347853161,1736159445484,-500.0,0.00010818,2]
[347853162,1736159445495,-500.0,0.00010818,2]
[347853163,1736159445506,-500.0,0.00010818,2]
[347853164,1736159445518,-500.0,0.00010818,2]
[347853165,1736159445530,-500.0,0.00010818,2]
[347853166,1736159445542,-500.0,0.00010818,2]
[347853167,1736159445556,-500.0,0.00010818,2]
[347853168,1736159445567,-500.0,0.00010818,2]
[347853169,1736159445578,-500.0,0.00010818,2]
[347853170,1736159445589,-496.64,0.00010818,2]
[347853171,1736159445600,-500.0,0.00010818,2]
[347853172,1736159445613,-500.0,0.00010818,2]
[347853173,1736159445624,-500.0,0.00010818,2]
[347853174,1736159445637,-500.0,0.00010818,2]
[347853175,1736159445648,-500.0,0.00010818,2]
[347853176,1736159445659,-500.0,0.00010818,2]
[347853177,1736159445670,-500.0,0.00010818,2]
[347853178,1736159445681,-500.0,0.00010818,2]
[347853179,1736159445692,-344.95,0.00010818,2]
[347853180,1736159445703,-500.0,0.00010818,2]
[347853181,1736159445714,-500.0,0.00010818,2]
[347853182,1736159445725,-500.0,0.00010818,2]
[347853183,1736159445737,-500.0,0.00010818,2]
[347853184,1736159445748,-500.0,0.00010818,2]
[347853185,1736159445759,-500.0,0.00010818,2]
[347853186,1736159445770,-500.0,0.00010818,2]
[347853187,1736159445781,-500.0,0.00010818,2]
[347853188,1736159445793,-500.0,0.00010818,2]
[347853189,1736159445804,-500.0,0.00010818,2]
[347853190,1736159445815,-500.0,0.00010818,2]
[347853191,1736159445827,-500.0,0.00010818,2]
[347853192,1736159445839,-500.0,0.00010818,2]
[347853193,1736159445850,-500.0,0.00010818,2]
[347853194,1736159445863,-500.0,0.00010818,2]
[347853195,1736159445875,-500.0,0.00010818,2]
[347853196,1736159445886,-500.0,0.00010818,2]
[347853197,1736159445898,-532.35,0.00010818,2]
[347853198,1736159445909,-500.0,0.00010818,2]
[347853199,1736159445920,-500.0,0.00010818,2]
[347853200,1736159445931,-500.0,0.00010818,2]
[347853201,1736159445942,-500.0,0.00010818,2]
[347853202,1736159445953,-500.0,0.00010818,2]
[347853203,1736159445964,-500.0,0.00010818,2]
[347853205,1736159445975,-500.0,0.00010818,2]
[347853207,1736159445986,-500.0,0.00010818,2]
[347853209,1736159445997,-500.0,0.00010818,2]
[347853211,1736159446008,-500.0,0.00010818,2]
[347853213,1736159446019,-500.0,0.00010818,2]
[347853215,1736159446030,-500.0,0.00010818,2]
[347853218,1736159446041,-500.0,0.00010818,2]
[347853220,1736159446053,-500.0,0.00010818,2]
[347853222,1736159446063,-607.41,0.00010818,2]
[347853224,1736159446074,-500.0,0.00010818,2]
[347853226,1736159446086,-500.0,0.00010818,2]
[347853228,1736159446097,-1123.33,0.00010818,2]
[347853230,1736159446109,-500.0,0.00010818,2]
[347853231,1736159446121,-3775.39,0.00010818,2]
[347853232,1736159446133,-500.0,0.00010818,2]
[347853233,1736159446143,-500.0,0.00010818,2]
[347853234,1736159446153,-500.0,0.00010818,2]
[347853235,1736159446429,-500.0,0.00010818,2]
[347853238,1736159446448,-2469.82,0.00010818,2]
[347853240,1736159446458,-500.0,0.00010818,2]
[347853242,1736159446468,-500.0,0.00010818,2]
[347853245,1736159446478,-1412.83,0.00010818,2]
[347853246,1736159446487,-500.0,0.00010818,2]
[347853249,1736159446496,-500.0,0.00010818,2]
[347853250,1736159446505,-500.0,0.00010818,2]
[347853252,1736159446514,-500.0,0.00010818,2]
[347853254,1736159446523,-500.0,0.00010818,2]
[347853256,1736159446533,-500.0,0.00010818,2]
[347853258,1736159446542,-2263.33,0.00010818,2]
[347853261,1736159446551,-500.0,0.00010818,2]
[347853263,1736159446561,-527.59,0.00010818,2]
[347853264,1736159446570,-500.0,0.00010818,2]
[347853267,1736159446579,-500.0,0.00010818,2]
[347853268,1736159446589,-500.0,0.00010818,2]
[347853270,1736159446598,-500.0,0.00010818,2]
[347853272,1736159446609,-500.0,0.00010818,2]
[347853274,1736159446619,-500.0,0.00010818,2]
[347853276,1736159446628,-2887.38,0.00010818,2]
[347853278,1736159446637,-500.0,0.00010818,2]
[347853281,1736159446649,-2066.47,0.00010818,2]
[347853282,1736159446658,-500.0,0.00010818,2]
[347853284,1736159446667,-500.0,0.00010818,2]
[347853287,1736159446676,-580.58,0.00010818,2]
[347853288,1736159446686,-500.0,0.00010818,2]
[347853290,1736159446695,-500.0,0.00010818,2]
[347853292,1736159446704,-500.0,0.00010818,2]
[347853294,1736159446713,-500.0,0.00010818,2]
[347853296,1736159446723,-1494.472138,0.00010818,2]
[347853298,1736159446732,-500.0,0.00010818,2]
[347853301,1736159446741,-500.0,0.00010818,2]
[347853303,1736159446750,-500.0,0.00010818,2]
[347853304,1736159446759,-890.21,0.00010818,2]
[347853306,1736159446769,-1018.88,0.00010818,2]
[347853307,1736159446778,-500.0,0.00010818,2]
[347853308,1736159446786,-500.0,0.00010818,2]
[347853309,1736159446795,-500.0,0.00010818,2]
[347853310,1736159446804,-500.0,0.00010818,2]
[347853311,1736159446813,-1387.473422,0.00010818,2]
[347853312,1736159446823,-2583.53,0.00010818,2]
[347853313,1736159446832,-946.03,0.00010818,2]
[347853314,1736159446840,-500.0,0.00010818,2]
[347853315,1736159446849,-500.0,0.00010818,2]
[347853316,1736159446858,-500.0,0.00010818,2]
[347853318,1736159446868,-606.37,0.00010818,2]
[347853320,1736159446877,-500.0,0.00010818,2]
[347853322,1736159446886,-1446.46,0.00010818,2]
[347853324,1736159446895,-510.04523799,0.00010818,2]
[347853326,1736159446905,-503.95,0.00010818,2]
[347853328,1736159446914,-500.0,0.00010818,2]
[347853330,1736159446923,-500.0,0.00010818,2]
[347853332,1736159446933,-500.0,0.00010818,2]
[347853334,1736159446942,-500.0,0.00010818,2]
[347853336,1736159446951,-500.0,0.00010818,2]
[347853338,1736159446961,-722.97,0.00010818,2]
[347853340,1736159446970,-663.6,0.00010818,2]
[347853342,1736159446980,-500.0,0.00010818,2]
[347853344,1736159446989,-500.0,0.00010818,2]